bitfinex/quotes_ETHUSD_20260219
["timestamp","ask_amount","ask_price","bid_price","bid_amount"]
[1771486684904,1.71555207,1987.1,1986.6,1.232]
[1771486685604,1.71555207,1987.1,1986.8,0.001]
[1771486685823,1.71665207,1987.1,1986.8,0.001]
[1771486686275,0.4574323,1986.9,1986.6,1.232]
[1771486686798,1.71665207,1987.1,1986.6,1.232]
[1771486687231,0.4574323,1987.0,1986.6,1.232]
[1771486688202,0.4574323,1986.9,1986.6,1.232]
[1771486688598,0.4574323,1986.9,1986.6,0.001]
[1771486690445,1.71570174,1986.9,1986.6,0.001]
[1771486692529,0.4585323,1987.1,1986.6,0.001]
[1771486692734,0.0011,1987.1,1986.6,0.49597325]
[1771486694263,0.4585323,1987.1,1986.6,0.001]
[1771486694849,0.4585323,1987.1,1986.6,1.25943149]
[1771486696778,0.0011,1987.1,1986.7,0.49497325]
[1771486696959,0.0011,1987.2,1986.7,1.227]
[1771486697470,0.4585323,1987.2,1986.7,1.227]
[1771486698263,0.0011,1987.2,1986.7,1.72197325]
[1771486698840,0.0011,1987.2,1986.8,1.25830481]
[1771486699068,0.0011,1987.0,1986.8,1.25830481]
[1771486707169,0.4585323,1987.0,1986.7,1.228]
[1771486707873,0.4574323,1986.8,1986.5,0.001]
[1771486708246,0.4574323,1986.8,1986.4,1.229]
[1771486708550,0.4574323,1986.6,1986.4,1.229]
[1771486711261,1.71586716,1986.6,1986.3,0.907]
[1771486711684,0.48564112,1986.5,1986.0,1.228]
[1771486711882,0.48564112,1986.5,1986.0,2.48680686]
[1771486712596,0.48564112,1986.5,1986.0,1.228]
[1771486712796,0.48564112,1986.5,1986.0,1.25880714]
[1771486713107,1.74413776,1986.5,1986.0,1.25880714]
[1771486713279,0.48564112,1986.4,1986.0,1.25880714]
[1771486720016,1.25841098,1986.7,1986.1,0.45711864]
[1771486720218,1.258334,1986.8,1986.1,0.45711864]
[1771486720617,0.48564112,1986.7,1986.1,0.45711864]
[1771486721519,0.48564112,1986.7,1986.2,1.25868492]
[1771486724824,0.0011,1986.6,1986.1,0.001]
[1771486725330,0.48674112,1986.6,1986.1,1.25974568]
[1771486725698,0.48674112,1986.6,1986.1,0.001]
[1771486726531,1.74419931,1986.4,1986.1,0.001]
[1771486727225,0.48564112,1986.4,1986.1,0.001]
[1771486728801,1.74421606,1986.4,1986.1,0.001]
[1771486732036,0.48564112,1986.4,1986.1,0.001]
[1771486735931,1.25849828,1986.5,1986.1,0.001]
[1771486736230,1.7441394,1986.5,1986.1,0.001]
[1771486738025,0.48564112,1986.4,1986.1,0.001]
[1771486738231,0.48564112,1986.4,1986.2,0.001]
[1771486738422,0.0011,1986.3,1986.2,0.001]
[1771486742241,0.49298828,1986.3,1986.0,0.001]
[1771486742540,0.49298828,1986.3,1985.8,0.001]
[1771486742541,1.2587483,1986.1,1985.8,0.001]
[1771486742742,0.49188828,1986.0,1985.8,0.001]
[1771486743246,0.49188828,1986.0,1985.6,0.001]
[1771486743247,0.49188828,1985.9,1985.6,0.001]
[1771486743546,0.49188828,1985.6,1985.0,2.98455763]
[1771486744436,0.862,1986.0,1985.0,2.98455763]
[1771486744437,0.49188828,1985.8,1985.1,0.49814094]
[1771486744843,1.75084468,1985.8,1985.2,1.25931896]
[1771486745434,0.49188828,1985.7,1985.1,5.53552033]
[1771486745746,0.49188828,1985.7,1985.1,1.75747199]
[1771486746755,0.49188828,1985.4,1985.0,0.001]
[1771486746927,0.49188828,1985.2,1984.9,0.001]
[1771486747822,0.49188828,1985.2,1984.7,0.001]
[1771486747823,0.49188828,1984.8,1984.7,0.001]
[1771486748026,0.49188828,1984.8,1984.4,1.227]
[1771486748237,0.49188828,1984.6,1984.1,0.908]
[1771486748921,0.49188828,1984.6,1984.1,0.001]
[1771486750443,1.35688828,1984.8,1984.1,0.49914094]
[1771486750643,2.61733427,1985.0,1984.3,0.49914094]
[1771486750845,2.61733427,1985.0,1984.4,1.25982664]
[1771486751125,0.49188828,1984.9,1984.3,1.26085908]
[1771486751527,0.49188828,1984.9,1984.4,0.001]
[1771486753057,1.75139896,1984.9,1984.4,0.001]
[1771486754647,0.49188828,1984.9,1984.4,0.001]
[1771486756158,0.49188828,1984.8,1984.4,0.001]
[1771486756361,1.25951268,1984.9,1984.4,0.001]
[1771486756362,0.49188828,1984.6,1984.4,0.001]
[1771486757665,0.49188828,1984.6,1984.3,0.001]
[1771486757954,0.49188828,1984.4,1984.1,0.001]
[1771486758270,1.75172226,1984.4,1984.1,0.001]
[1771486758468,0.49188828,1984.3,1984.1,0.001]
[1771486758846,0.49188828,1984.3,1983.6,0.907]
[1771486758847,0.49188828,1984.2,1983.6,1.26027868]
[1771486760558,1.75185491,1984.2,1983.6,1.26027868]
[1771486760752,0.49188828,1984.1,1983.5,1.75849541]
[1771486761136,0.49188828,1984.1,1983.5,0.49814094]
[1771486761337,0.49188828,1984.0,1983.4,1.2604253]
[1771486762484,5.90876877,1984.3,1983.3,1.26047697]
[1771486762485,0.49188828,1983.8,1983.3,1.26047697]
[1771486762983,0.49188828,1983.8,1983.2,2.486556]
[1771486763686,0.49188828,1983.8,1983.7,0.001]
[1771486763855,0.49188828,1983.8,1983.2,2.486556]
[1771486764064,0.49188828,1983.8,1983.5,0.001]
[1771486765207,0.49188828,1984.2,1983.5,0.49914094]
[1771486767205,2.6197248,1984.4,1983.7,0.49814094]
[1771486768075,2.6197163,1984.4,1983.7,0.49814094]
[1771486768271,0.49188828,1984.6,1983.7,0.49814094]
[1771486768501,1.35988828,1984.6,1983.7,0.49814094]
[1771486768693,0.49188828,1984.5,1983.6,1.26033474]
[1771486768896,0.49188828,1984.5,1983.6,1.75847568]
[1771486769096,0.49188828,1984.5,1983.7,0.49814094]
[1771486769289,1.75171492,1984.4,1983.8,1.26020768]
[1771486769694,0.49188828,1984.4,1983.8,1.26020768]
[1771486770809,1.72619513,1984.6,1983.8,1.73775064]
[1771486771101,0.46649115,1984.5,1983.8,1.73775064]
[1771486771819,0.46649115,1984.4,1983.8,1.73775064]
[1771486772427,0.46649115,1984.4,1983.8,1.26020768]
[1771486773021,1.72624413,1984.6,1983.8,1.73775064]
[1771486773219,1.72624413,1984.6,1983.9,0.47754296]
[1771486774002,0.46649115,1984.5,1984.0,1.26008064]
[1771486775015,0.46649115,1984.5,1983.8,5.04071669]
[1771486775411,0.46649115,1984.5,1983.8,5.51825965]
[1771486775601,5.49204215,1984.8,1983.9,0.47754296]
[1771486775792,0.46649115,1984.8,1983.9,0.47754296]
[1771486776122,0.0011,1984.4,1984.0,1.26008064]
[1771486776299,0.0011,1984.4,1984.1,0.47754296]
[1771486776509,0.0011,1984.4,1984.0,1.26008064]
[1771486778608,0.0011,1984.4,1984.0,1.7376236]
[1771486779030,0.0011,1984.4,1984.1,0.47754296]
[1771486781012,0.0011,1984.4,1984.2,1.25995363]
[1771486786861,0.0011,1984.4,1984.1,5.03981976]
[1771486788164,0.0011,1984.4,1984.1,5.51736272]
[1771486792371,0.0011,1984.4,1984.2,0.47754296]
[1771486792668,0.0011,1984.7,1984.3,0.47754296]
[1771486793556,0.0011,1984.7,1984.3,1.70254296]
[1771486794462,0.0011,1984.7,1984.4,1.25982664]
[1771486796072,0.46649115,1984.5,1983.9,1.26014416]
[1771486796367,0.46649115,1984.0,1983.8,0.001]
[1771486796569,0.46649115,1984.0,1983.7,0.001]
[1771486797133,0.46649115,1984.2,1983.7,0.001]
[1771486797334,0.46649115,1984.2,1983.7,6.30013323]
[1771486799542,0.46649115,1984.2,1983.8,0.001]
[1771486800661,0.46217449,1984.4,1983.9,6.29913323]
[1771486801064,0.46217449,1984.4,1984.0,6.29913323]
[1771486801256,0.46107449,1984.3,1983.8,6.30013323]
[1771486801457,0.46107449,1984.2,1983.8,7.5603383]
[1771486801888,0.46107449,1984.2,1983.8,6.30013323]
[1771486802184,0.46107449,1984.2,1983.8,0.001]
[1771486803853,0.46107449,1984.2,1983.8,6.30013323]
[1771486805500,0.46107449,1984.1,1983.8,6.30013323]
[1771486805663,0.46107449,1983.9,1983.7,0.001]
[1771486806200,0.46107449,1983.9,1983.5,0.001]
[1771486807124,0.46107449,1983.9,1983.5,1.26139356]
[1771486807624,0.46107449,1983.9,1983.5,0.001]
[1771486807916,0.46107449,1983.8,1983.5,0.001]
[1771486808126,0.46107449,1983.8,1983.4,0.001]
[1771486808417,0.46107449,1983.8,1983.0,1.227]
[1771486808581,0.46107449,1983.8,1983.0,2.48770811]
[1771486808783,0.46107449,1983.8,1983.1,0.49605703]
[1771486809484,0.46107449,1983.8,1983.0,2.48770811]
[1771486809783,0.46107449,1983.8,1983.0,2.98376514]
[1771486809999,0.46107449,1983.8,1983.0,2.48770811]
[1771486810000,0.46107449,1983.7,1983.0,2.48770811]
[1771486811096,0.46107449,1983.7,1983.0,2.98376514]
[1771486811307,0.46107449,1983.7,1983.2,0.001]
[1771486812430,5.04119982,1984.1,1983.2,0.001]
[1771486812431,0.0011,1984.1,1983.3,0.49605703]
[1771486813144,0.0011,1984.2,1983.6,0.49605703]
[1771486813421,0.46217449,1984.4,1983.7,1.225]
[1771486813580,0.46107449,1984.3,1983.7,1.225]
[1771486814389,0.46107449,1984.3,1983.8,1.26020768]
[1771486815515,1.72097581,1984.3,1983.7,2.48522605]
[1771486815725,0.46107449,1984.3,1983.7,2.48522605]
[1771486816519,1.72097937,1984.3,1983.7,2.48522605]
[1771486818200,0.46107449,1984.2,1983.7,1.225]
[1771486818683,0.46107449,1984.2,1983.4,5.04172076]
[1771486818684,0.46107449,1984.0,1983.4,5.04172076]
[1771486819085,0.46107449,1984.0,1983.3,5.04198181]
[1771486819390,0.46107449,1984.0,1983.3,1.26052538]
[1771486819793,0.46107449,1984.0,1983.2,2.48653826]
[1771486820786,0.46107449,1983.8,1983.2,0.001]
[1771486821186,0.46107449,1983.8,1983.2,1.26158664]
[1771486821791,0.46107449,1983.8,1983.2,0.001]
[1771486822110,5.04057664,1984.0,1983.2,0.001]
[1771486822111,2.57920263,1984.0,1983.2,1.75764181]
[1771486822302,0.46107449,1983.9,1983.2,1.26158478]
[1771486822503,0.46107449,1983.9,1983.2,0.001]
[1771486823014,0.46107449,1983.7,1983.2,0.001]
[1771486823837,0.46107449,1983.7,1983.3,0.001]
[1771486824835,1.26033474,1983.6,1983.3,0.001]
[1771486825140,1.72140923,1983.6,1983.3,0.001]
[1771486825543,0.46107449,1983.5,1983.3,0.001]
[1771486826044,0.46107449,1983.5,1983.2,0.001]
[1771486827029,1.72139747,1983.7,1983.2,0.001]
[1771486827233,0.46107449,1983.6,1983.2,0.001]
[1771486830446,11.40202461,1983.8,1983.2,0.001]
[1771486830447,5.04096325,1983.8,1983.2,0.001]
[1771486830648,1.71449337,1984.1,1983.3,0.49474371]
[1771486830838,1.26032298,1983.9,1983.3,0.49474371]
[1771486831349,1.26032298,1984.0,1983.4,1.75520554]
[1771486831548,1.26032298,1983.9,1983.4,1.75520554]
[1771486831750,1.26032298,1984.0,1983.4,1.75520554]
[1771486831946,0.45444668,1984.1,1983.4,1.75520554]
[1771486832117,1.26032298,1984.0,1983.4,1.75520554]
[1771486832832,1.26032298,1984.0,1983.4,1.26046183]
[1771486833427,1.26032298,1984.0,1983.4,1.75520554]
[1771486833750,0.0011,1984.1,1983.5,0.49474371]
[1771486834048,1.26142298,1984.1,1983.5,0.49474371]
[1771486835648,1.26142298,1984.1,1983.6,1.75507845]
[1771486836043,0.0011,1984.2,1983.7,0.49474371]
[1771486836766,0.0011,1984.1,1983.7,0.49474371]
[1771486837758,0.0011,1984.1,1983.8,1.26020768]
[1771486845251,0.0011,1984.1,1983.6,5.53592339]
[1771486845766,0.0011,1984.1,1983.6,6.75392339]
[1771486848880,0.0011,1984.1,1983.6,6.75492339]
[1771486849080,0.0011,1984.0,1983.6,6.75492339]
[1771486849783,0.0011,1984.0,1983.7,0.49474371]
[1771486849953,0.0011,1984.0,1983.8,1.26020768]
[1771486859249,0.0011,1984.0,1983.7,5.04083072]
[1771486862602,0.0011,1984.0,1983.8,0.001]
[1771486863899,0.0011,1984.3,1983.9,5.95864999]
[1771486864074,0.0011,1984.3,1983.9,6.71931785]
[1771486864276,0.0011,1984.3,1983.9,1.224]
[1771486865072,0.0011,1984.3,1983.9,1.68733214]
[1771486865295,0.0011,1984.3,1984.0,0.46333214]
[1771486866095,0.0011,1984.3,1984.1,1.26001713]
[1771486866886,0.0011,1984.3,1984.1,1.11001713]
[1771486872515,0.0011,1984.5,1984.2,0.46333214]
[1771486872810,0.0011,1984.5,1984.2,1.69033214]
[1771486873703,0.0011,1984.5,1984.3,0.46333214]
[1771486874408,0.0011,1984.5,1984.2,1.69033214]
[1771486874604,0.0011,1984.5,1984.2,1.227]
[1771486874904,0.45152232,1984.5,1984.0,2.48903875]
[1771486875615,0.45152232,1984.5,1984.1,0.001]
[1771486875784,0.0011,1984.4,1984.1,0.001]
[1771486881994,0.45152232,1984.4,1984.1,0.001]
[1771486882820,5.49531785,1984.3,1983.8,0.001]
[1771486883012,0.45042232,1984.3,1983.8,2.52327984]
[1771486884788,0.0011,1984.4,1983.8,2.98661198]
[1771486884993,0.0011,1984.4,1983.9,0.46333214]
[1771486885421,0.45042232,1984.3,1983.9,1.26207753]
[1771486886901,0.45042232,1984.3,1983.9,2.52218812]
[1771486887230,0.45042232,1984.3,1983.7,0.46433214]
[1771486887231,0.45042232,1984.0,1983.7,0.001]
[1771486887418,5.49531785,1984.1,1983.5,0.001]
[1771486887419,0.45042232,1983.8,1983.5,0.001]
[1771486889027,0.45042232,1983.7,1983.5,0.001]
[1771486891035,0.45413943,1983.6,1983.3,1.26307753]
[1771486892034,0.45413943,1983.6,1983.2,0.001]
[1771486892235,0.45413943,1983.6,1983.3,1.26407753]
[1771486894644,1.71448428,1983.6,1983.3,1.26407753]
[1771486895234,0.45413943,1983.6,1983.3,1.26407753]
[1771486896644,0.45413943,1983.6,1983.2,0.001]
[1771486896844,0.45413943,1983.6,1983.3,1.26407753]
[1771486897310,1.71447828,1983.6,1983.3,1.26407753]
[1771486898049,0.45413943,1983.4,1982.8,1.74084022]
[1771486898225,0.45413943,1983.4,1982.7,1.2608722]
[1771486898549,5.94945728,1983.3,1982.7,1.2608722]
[1771486898745,1.71466748,1983.3,1982.7,1.2608722]
[1771486899452,1.71466748,1983.3,1982.6,1.74097043]
[1771486899756,0.45413943,1983.2,1982.6,1.74097043]
[1771486900733,0.45413943,1983.1,1982.5,5.04398782]
[1771486901319,0.45413943,1983.1,1982.4,1.74114366]
[1771486901320,0.45413943,1983.0,1982.4,1.74114366]
[1771486902416,0.45413943,1983.0,1982.4,1.26109765]
[1771486902818,0.45413943,1982.9,1982.3,0.48004601]
[1771486905047,0.45413943,1982.9,1982.4,1.26109765]
[1771486906036,7.21004193,1983.3,1982.5,0.48004601]
[1771486906248,1.30513943,1983.2,1982.5,0.48004601]
[1771486906767,0.45413943,1983.1,1982.5,0.48004601]
[1771486907978,0.45413943,1983.1,1982.6,1.26097044]
[1771486908146,0.0011,1983.5,1982.7,0.48004601]
[1771486909038,0.45523943,1983.5,1982.7,0.48004601]
[1771486909668,0.0011,1983.5,1982.8,5.49531785]
[1771486909869,0.0011,1983.5,1982.9,0.48004601]
[1771486910070,0.0011,1983.5,1983.0,1.74076209]
[1771486910439,0.0011,1983.5,1983.1,0.48004601]
[1771486911392,0.0011,1983.5,1983.2,0.48004601]
[1771486911975,0.0011,1983.5,1983.3,1.26052538]
[1771486914500,0.0011,1983.5,1983.2,5.52314755]
[1771486914813,0.0011,1983.5,1983.3,0.48004601]
[1771486915108,0.0011,1983.5,1983.2,5.04310154]
[1771486915308,0.0011,1983.5,1983.2,1.26158894]
[1771486916696,0.0011,1983.5,1983.2,0.001]
[1771486917510,0.0011,1983.5,1983.2,0.48104601]
[1771486918212,0.0011,1983.8,1983.4,0.48004601]
[1771486918514,0.45523943,1983.8,1983.2,0.001]
[1771486919100,0.45413943,1983.7,1983.2,0.001]
[1771486919416,0.0011,1983.8,1983.2,0.48104601]
[1771486919832,0.0011,1983.8,1983.4,0.46200162]
[1771486920922,0.0011,1983.8,1983.3,1.26052538]
[1771486921086,0.49028216,1983.7,1983.2,2.48854926]
[1771486921485,0.0011,1983.8,1983.2,2.96484325]
[1771486921686,0.0011,1983.8,1983.4,0.47629399]
[1771486921896,1.75129624,1984.3,1983.6,0.47629399]
[1771486921897,0.49138216,1984.3,1983.6,0.47629399]
[1771486924420,0.49138216,1984.3,1983.7,1.26027121]
[1771486924923,0.49138216,1984.3,1983.7,1.7365652]
[1771486925626,0.0011,1984.3,1983.7,1.26027121]
[1771486925807,0.0011,1984.0,1983.7,1.26027121]
[1771486927829,0.0011,1984.0,1983.8,0.47629399]
[1771486928407,0.0011,1984.0,1983.7,2.48727121]
[1771486929430,0.0011,1984.0,1983.7,1.227]
[1771486929607,0.49028216,1983.9,1983.3,2.48852538]
[1771486930198,5.99016218,1983.8,1983.3,2.48852538]
[1771486930429,0.49028216,1983.8,1983.3,2.48852538]
[1771486937043,0.49028216,1983.8,1983.4,0.001]
[1771486944158,0.49028216,1983.8,1983.0,0.001]
[1771486944159,0.49028216,1983.5,1983.0,0.001]
[1771486944448,0.49028216,1983.5,1983.0,1.26170765]
[1771486944615,0.49028216,1983.4,1983.0,0.001]
[1771486946941,1.75074654,1983.4,1983.0,0.001]
[1771486948829,0.49028216,1983.4,1983.0,0.001]
[1771486949165,0.49028216,1983.6,1983.0,0.47729399]
[1771486949514,0.49028216,1983.6,1983.1,0.001]
[1771486949722,0.7111,1983.7,1983.1,0.48444308]
[1771486949946,1.21001628,1983.7,1983.1,0.48444308]
[1771486950146,2.4702891,1983.7,1983.1,0.48444308]
[1771486950449,1.21001628,1983.7,1983.1,0.48444308]
[1771486951219,0.0011,1984.0,1983.5,5.49988002]
[1771486951458,0.0011,1984.0,1983.5,5.9833231]
[1771486951660,0.0011,1984.0,1983.6,0.48344308]
[1771486953334,0.0011,1984.0,1983.7,1.26027121]
[1771486958650,0.0011,1984.0,1983.6,1.26030133]
[1771486960625,0.50001628,1984.0,1983.6,1.26030133]
[1771486960825,0.50001628,1984.0,1983.4,5.0416615]
[1771486961848,0.50001628,1984.0,1983.7,0.001]
[1771486962057,0.0011,1983.9,1983.7,0.001]
[1771486966936,0.50001628,1983.9,1983.7,0.001]
[1771486969436,0.0011,1983.9,1983.7,0.001]
[1771486975898,0.0011,1983.9,1983.8,0.001]
[1771486976462,0.50001628,1983.9,1983.8,0.001]
[1771486976785,0.0011,1983.9,1983.8,0.001]
[1771486979481,0.46390898,1983.9,1983.8,0.001]
[1771486983801,0.0011,1983.9,1983.8,0.001]
[1771486984774,0.48127518,1983.9,1983.8,0.001]
[1771486989111,1.74141934,1983.9,1983.8,0.001]
[1771486989980,1.74141934,1983.9,1983.7,0.001]
[1771486990583,0.48017518,1983.8,1983.7,0.001]
[1771486992707,1.74038286,1983.8,1983.7,0.001]
[1771486993177,1.74038286,1983.8,1983.5,0.001]
[1771486993178,0.48017518,1983.7,1983.5,0.001]
[1771486993380,0.48017518,1983.5,1983.1,0.001]
[1771486993992,1.74063701,1983.4,1983.1,0.001]
[1771486994192,0.48017518,1983.4,1983.1,0.001]
[1771487000802,0.48017518,1983.4,1983.2,0.001]
[1771487003240,0.48017518,1983.7,1983.2,0.001]
[1771487003450,0.856,1983.6,1983.2,0.001]
[1771487003849,0.856,1983.6,1983.2,0.48919645]
[1771487005206,0.856,1983.6,1983.2,1.74972646]
[1771487005500,2.1163545,1983.6,1983.2,0.001]
[1771487006148,0.856,1983.6,1983.2,0.001]
[1771487006372,0.48017518,1983.5,1983.0,0.001]
[1771487006501,0.48017518,1983.0,1982.0,1.26135216]
[1771487006864,0.48017518,1982.7,1981.9,2.15756299]
[1771487007139,1.74114562,1982.6,1981.9,1.74956299]
[1771487007348,0.48017518,1982.5,1981.9,0.48819645]
[1771487007630,0.48017518,1982.3,1981.5,1.74981621]
[1771487007832,0.48017518,1982.3,1981.4,1.74989866]
[1771487008009,5.97726192,1982.2,1981.4,1.74989866]
[1771487008213,0.48017518,1982.1,1981.4,1.74989866]
[1771487008409,0.48017518,1982.1,1981.4,1.26170221]
[1771487008620,0.858,1982.4,1981.7,0.48819645]
[1771487009228,2.11910184,1982.4,1981.8,1.26147946]
[1771487009438,2.59927702,1982.4,1981.8,1.26147946]
[1771487009940,1.33817518,1982.4,1981.8,1.26147946]
[1771487010138,0.858,1982.4,1981.8,1.74399804]
[1771487010347,0.4767687,1982.8,1982.1,0.48251858]
[1771487010530,0.0011,1983.8,1982.2,5.49708674]
[1771487010531,1.73752922,1983.0,1982.2,5.49708674]
[1771487010719,1.73752922,1983.0,1982.2,5.97960532]
[1771487010917,8.76725337,1983.4,1982.5,0.48251858]
[1771487011227,6.37665207,1983.4,1982.6,1.26097044]
[1771487012144,0.4767687,1983.3,1982.5,1.743502]
[1771487012544,0.4767687,1983.3,1982.5,1.26098342]
[1771487012945,0.4767687,1983.3,1982.7,0.001]
[1771487013149,0.4778687,1983.3,1982.7,0.001]
[1771487013344,0.4767687,1983.1,1982.7,0.001]
[1771487015769,2.12064203,1983.2,1982.7,0.001]
[1771487016063,1.26064203,1983.2,1982.7,0.001]
[1771487016240,2.12064203,1983.2,1982.7,0.001]
[1771487017239,0.86,1983.2,1982.7,0.001]
[1771487017440,2.12058971,1983.2,1982.7,0.001]
[1771487017644,1.3367687,1983.2,1982.7,0.001]
[1771487018464,2.59738945,1983.2,1982.7,0.001]
[1771487023267,1.3367687,1983.2,1982.7,0.001]
[1771487024274,0.86,1983.2,1982.7,0.48351858]
[1771487026173,0.86,1983.2,1982.8,0.001]
[1771487026593,0.0011,1983.1,1982.8,0.48351858]
[1771487028149,0.0011,1983.6,1983.0,0.48251858]
[1771487028343,0.0011,1983.6,1983.0,1.69251858]
[1771487028545,0.0011,1983.6,1983.1,0.48251858]
[1771487030465,0.0011,1983.8,1983.3,0.48251858]
[1771487030873,0.0011,1983.9,1983.2,1.26058894]
[1771487031063,0.0011,1984.0,1983.4,0.48251858]
[1771487032751,0.0011,1984.0,1983.5,1.74291686]
[1771487033273,0.0011,1984.0,1983.6,0.48251858]
[1771487035057,0.0011,1984.0,1983.7,1.26027121]
[1771487035261,0.0011,1984.0,1983.7,1.74278979]
[1771487035563,0.0011,1984.0,1983.8,0.48251858]
[1771487036459,0.0011,1984.0,1983.7,1.26027121]
[1771487037282,0.0011,1984.0,1983.6,5.04108484]
[1771487039662,0.0011,1983.9,1983.6,1.26033474]
[1771487042682,0.0011,1983.9,1983.6,1.71069984]
[1771487044474,0.0011,1984.2,1983.7,0.4503651]
[1771487045696,0.0011,1984.2,1983.8,1.26020768]
[1771487046570,0.48208634,1984.2,1983.6,1.26033474]
[1771487047670,0.48208634,1984.2,1983.4,1.212]
[1771487047671,0.48098634,1984.0,1983.4,1.212]
[1771487047970,0.48098634,1984.0,1983.4,1.6623651]
[1771487049577,0.0011,1984.2,1983.5,0.4503651]
[1771487049780,0.48208634,1984.2,1983.6,1.26033474]
[1771487050299,0.48208634,1984.2,1983.6,1.71069984]
[1771487051197,0.48208634,1984.2,1983.6,1.26033474]
[1771487051689,0.48208634,1984.1,1983.5,5.04233897]
[1771487061523,0.0011,1984.2,1983.8,5.49686588]
[1771487061810,0.0011,1984.2,1984.0,1.26008064]
[1771487064121,0.0011,1984.2,1983.9,5.04032258]
[1771487064419,0.0011,1984.1,1983.9,5.04032258]
[1771487065291,0.0011,1984.1,1983.9,5.49068768]
[1771487066935,0.0011,1984.1,1983.9,5.04032258]
[1771487067092,0.0011,1984.1,1984.0,0.4503651]
[1771487067519,0.0011,1984.1,1983.9,5.49068768]
[1771487067798,0.0011,1984.1,1984.0,0.4503651]
[1771487068519,0.0011,1984.1,1983.9,5.04032258]
[1771487070419,0.0011,1984.1,1983.9,5.53989301]
[1771487072130,0.0011,1984.3,1984.0,0.49957043]
[1771487073012,0.0011,1984.3,1984.1,0.49957043]
[1771487073218,0.0011,1984.3,1984.2,1.25995363]
[1771487075397,0.0011,1984.3,1984.1,6.25797717]
[1771487075800,0.49368382,1985.0,1984.2,5.99643631]
[1771487076034,0.49368382,1985.0,1984.3,0.49957043]
[1771487077116,0.49368382,1985.0,1984.1,6.25797717]
[1771487077117,0.49368382,1984.8,1984.1,1.218]
[1771487077338,0.49368382,1984.6,1984.1,2.47801713]
[1771487077928,0.49368382,1984.6,1984.1,1.26001713]
[1771487080659,0.49368382,1984.6,1984.0,6.25825578]
[1771487080660,5.9905497,1984.3,1984.0,2.47802939]
[1771487084760,0.49368382,1984.3,1984.0,2.47802939]
[1771487086077,0.49368382,1984.3,1984.0,1.26002939]
[1771487086374,5.9905497,1984.3,1983.7,1.71757043]
[1771487086571,0.49368382,1984.2,1983.8,1.26020768]
[1771487087560,0.49368382,1984.2,1984.1,0.001]
[1771487087759,5.49686588,1984.3,1983.8,1.26020768]
[1771487087939,5.9905497,1984.3,1984.0,0.001]
[1771487088138,0.49368382,1984.2,1984.0,0.001]
[1771487088857,5.9905497,1984.3,1984.0,0.001]
[1771487090037,1.25975021,1984.6,1984.1,0.49957043]
[1771487090264,0.49478382,1985.2,1984.4,0.49957043]
[1771487090444,0.49368382,1985.1,1984.4,0.49957043]
[1771487090754,0.49368382,1985.1,1984.5,1.25976316]
[1771487090964,0.49368382,1985.1,1984.5,1.75933359]
[1771487091361,0.0011,1985.2,1984.6,0.49957043]
[1771487093176,0.0011,1985.2,1984.7,1.75920664]
[1771487094283,0.0011,1985.2,1984.7,0.49957043]
[1771487094478,0.0011,1985.2,1984.6,1.75922006]
[1771487095264,0.49368382,1985.1,1984.5,1.25972808]
[1771487100080,1.75306732,1985.1,1984.5,1.25972808]
[1771487100280,0.49368382,1985.1,1984.5,1.25972808]
[1771487100486,1.75307045,1985.1,1984.5,1.25972808]
[1771487100662,7.24365522,1985.1,1984.5,1.25972808]
[1771487100980,7.24365522,1985.1,1984.6,0.001]
[1771487101176,0.0011,1985.0,1984.6,0.001]
[1771487101484,0.45408103,1985.0,1984.6,0.001]
[1771487101777,0.45408103,1985.0,1984.2,6.25676609]
[1771487101778,5.49058477,1984.7,1984.2,1.74034506]
[1771487101992,5.49058477,1984.7,1984.1,1.25997974]
[1771487101993,5.49058477,1984.5,1984.1,1.25997974]
[1771487102181,0.45298103,1984.6,1984.3,0.001]
[1771487102681,5.49058477,1984.7,1984.3,0.001]
[1771487103073,6.33258477,1984.9,1984.3,0.48144085]
[1771487103278,6.7855658,1984.9,1984.3,0.001]
[1771487103585,8.04507958,1984.9,1984.3,0.001]
[1771487104287,6.7855658,1984.9,1984.3,1.26089013]
[1771487104494,6.7855658,1984.9,1984.3,1.74133098]
[1771487106359,6.33458477,1984.9,1984.3,1.74133098]
[1771487109100,0.45298103,1984.8,1984.3,1.26089013]
[1771487110468,0.844,1984.9,1984.3,1.74133098]
[1771487111072,0.45298103,1984.8,1984.3,1.74133098]
[1771487111796,1.29698103,1984.9,1984.3,1.74133098]
[1771487113397,0.45298103,1984.8,1984.3,0.001]
[1771487113694,7.59409433,1984.9,1984.3,0.001]
[1771487113695,0.45298103,1984.6,1984.3,0.001]
[1771487114000,0.45298103,1984.6,1984.4,0.001]
[1771487114572,0.845,1984.5,1984.4,0.001]
[1771487114899,1.29798103,1984.5,1984.4,0.001]
[1771487115107,0.845,1984.5,1984.4,0.001]
[1771487120901,0.845,1984.5,1984.1,0.001]
[1771487120902,0.45298103,1984.4,1984.1,0.001]
[1771487121221,5.9435658,1984.4,1984.1,0.001]
[1771487121376,0.45298103,1984.4,1984.1,0.001]
[1771487121578,0.845,1984.5,1984.1,0.001]
[1771487121785,1.25966416,1984.7,1984.1,0.48144085]
[1771487121999,10.98315002,1984.8,1984.2,1.74039448]
[1771487122000,0.846,1984.6,1984.2,1.74039448]
[1771487122412,0.846,1984.6,1984.2,0.48044085]
[1771487122811,0.846,1984.6,1984.1,1.26096865]
[1771487124208,1.29898103,1984.6,1984.1,1.26096865]
[1771487127306,2.55871865,1984.6,1984.1,0.001]
[1771487127500,1.29898103,1984.6,1984.1,0.001]
[1771487127889,1.29898103,1984.6,1984.2,0.001]
[1771487128216,0.0011,1984.5,1984.2,0.001]
[1771487132093,0.0011,1984.5,1984.2,1.26095363]
[1771487133222,0.0011,1984.5,1984.2,0.001]
[1771487133898,0.47115553,1984.5,1984.2,0.001]
[1771487134098,0.47005553,1984.4,1984.2,0.001]
[1771487134896,1.26089943,1984.5,1984.2,0.001]
[1771487135222,1.73095496,1984.5,1984.2,0.001]
[1771487136529,0.0011,1984.5,1984.2,0.001]
[1771487137800,0.8511,1984.5,1984.2,0.47573189]
[1771487139123,0.0011,1984.5,1984.4,0.47473189]
[1771487139434,0.0011,1984.6,1984.4,0.47473189]